[Event "American Cup Blitz 2024"]
[Site "Saint Louis"]
[Date "2024.03.21"]
[Round "5.8"]
[White "Robson, Ray"]
[Black "Hong, Andrew"]
[Result "1-0"]
[ECO "A41"]
[WhiteElo "2696"]
[BlackElo "2542"]
[Annotator "TA"]
[PlyCount "155"]
[EventDate "2024.03.21"]
[EventType "swiss"]
[EventCountry "USA"]
[SourceTitle "playchess.com"]
[Source "ChessBase"]
[SourceQuality "1"]
[TimeControl "180+2"]

{[%evp 67,155,87,497,479,462,393,527,499,488,509,497,519,510,499,519,489,516,541,516,520,552,492,659,0,523,496,479,429,903,936,3451,4710,29966,29960,12833,12843,5712,5444,1185,681,586,571,560,547,535,527,1329,921,1122,963,977,692,681,574,672,660,966,958,883,890,1200,1133,1120,841,5185,1632,5616,5781,29978,29979,29979,29980,29980,29981,29987,29985,29990,29981,29989,29976,29990,29991,29992,29991,29991,29992,29992,29993,29995,29996]} 1. d4 {[%emt 0:00:01]} d6 {[%emt 0:00:01]} 2. Nf3 {[%emt 0:00:04]} g6 {[%emt 0:00:01]} 3. c4 {[%emt 0:00:02]} Bg7 {[%emt 0:00:01]} 4. Nc3 {[%emt 0:00:04]} Nc6 {[%emt 0:00:01]} 5. d5 {[%emt 0:00:27]} Nb8 {[%emt 0:00:12]} 6. e4 {[%emt 0:00:10] A41: 1 d4 d6: Tartakower System and Modern Defence.} Bg4 {[%emt 0:00:04]} 7. Qa4+ $146 {[%emt 0:00:36]} ({Predecessor:} 7. Qb3 Qc8 8. Be2 Nd7 9. O-O Nc5 10. Qc2 Nf6 11. Be3 a5 12. Bxc5 dxc5 13. e5 {1-0 Kozul,Z (2597)-Efimov,I (2416) Mediterranean-ch 11th 2021 (9)}) 7... Bd7 {[%emt 0:00:16]} 8. Qb3 {[%emt 0:00:05]} Na6 {[%emt 0:00:02]} 9. Be3 {[%emt 0:00:05]} c5 {[%emt 0:00:13]} 10. Be2 {[%emt 0:00:17]} Nf6 {[%emt 0:00:09]} 11. O-O {[%emt 0:00:04]} O-O {[%emt 0:00:04]} 12. h3 {[%emt 0:00:04]} e6 {[%emt 0:00:31]} 13. e5 {[%emt 0:00:20]} dxe5 {[%emt 0:00:04]} 14. Nxe5 {[%emt 0:00:06]} exd5 {[%emt 0:00:33]} 15. cxd5 {[%emt 0:00:11]} Qc7 {[%emt 0:00:37]} 16. Nxd7 {[%emt 0:00:24]} Nxd7 {[%emt 0:00:01]} 17. d6 {[%emt 0:00:04]} Qb6 {[%emt 0:00:07]} 18. Nb5 {[%emt 0:00:08]} Nb4 {[%emt 0:00:14]} 19. Rfd1 {[%emt 0:00:03]} Nc6 {[%emt 0:00:01]} 20. Nc7 {[%emt 0:00:07]} Rad8 {[%emt 0:00:06]} 21. Bf3 {[%emt 0:00:17]} Nd4 {[%emt 0:00:11]} 22. Bxd4 {[%emt 0:00:01]} Bxd4 {[%emt 0:00:01]} 23. Qxb6 {[%emt 0:00:03]} Nxb6 {[%emt 0:00:04]} 24. Bxb7 {[%emt 0:00:03]} Bxb2 {[%emt 0:00:06]} 25. Rab1 {[%emt 0:00:01]} Be5 {[%emt 0:00:01]} 26. Nb5 {[%emt 0:00:02]} Rd7 {[%emt 0:00:07]} 27. Bc6 {[%emt 0:00:01]} Rdd8 {[%emt 0:00:01]} 28. d7 {[%emt 0:00:01]} Na4 {[%emt 0:00:06]} 29. Rbc1 {[%emt 0:00:04]} Bb2 {[%emt 0:00:02]} 30. Rc4 {[%emt 0:00:01]} Nb6 {[%emt 0:00:01]} 31. Rxc5 {[%emt 0:00:01]} Kg7 {[%emt 0:00:01]} 32. Nxa7 {[%emt 0:00:02]} Rb8 {[%emt 0:00:03]} 33. Nc8 {[%emt 0:00:04]} Bf6 {[%emt 0:00:03]} 34. Rb5 $2 {[%emt 0:00:01]} (34. Nd6 $18 {has better winning chances.}) 34... Rbxc8 $4 {[%emt 0:00:03][%mdl 8192]} (34... Nxd7 $16 35. Nd6 (35. Bxd7 Rxb5 36. Bxb5 Rxc8 $16) (35. Rxd7 Rbxc8 36. Bd5 Rc1+ 37. Kh2 Rf1 $11) 35... Ne5) 35. dxc8=Q {[%emt 0:00:03]} ({Much less strong is} 35. dxc8=N Nxc8 36. Rb8 Bc3) 35... Nxc8 {[%emt 0:00:00]} 36. Rb7 {[%emt 0:00:02]} Be5 {[%emt 0:00:02]} 37. Bd5 {[%emt 0:00:02]} Nd6 {[%emt 0:00:01]} 38. Rd7 {[%emt 0:00:01]} Rb8 {[%emt 0:00:02]} 39. Bb3 {[%emt 0:00:01]} Rb6 {[%emt 0:00:00]} 40. Rd5 {[%emt 0:00:04]} Kf6 {[%emt 0:00:02]} 41. g3 {[%emt 0:00:01]} g5 {[%emt 0:00:01]} 42. Kg2 {[%emt 0:00:01]} h5 {[%emt 0:00:02]} 43. Rd3 {[%emt 0:00:02]} Kg6 {[%emt 0:00:02]} 44. Re3 {[%emt 0:00:01]} Bd4 {[%emt 0:00:02]} 45. Rd3 {[%emt 0:00:02]} Be5 {[%emt 0:00:01]} 46. Kf3 {[%emt 0:00:04]} f6 {[%emt 0:00:03]} 47. Rd5 {[%emt 0:00:02]} Nf5 {[%emt 0:00:04]} (47... Rc6 $142 48. Kg2 Kf5) 48. Bc2 $18 {[%emt 0:00:02]} Rb2 {[%emt 0:00:01]} 49. Be4 {[%emt 0:00:03]} g4+ {[%emt 0:00:03]} 50. hxg4 {[%emt 0:00:01]} hxg4+ {[%emt 0:00:02]} 51. Kxg4 {[%emt 0:00:02]} Rb4 {[%emt 0:00:04]} 52. Kf3 {[%emt 0:00:04]} Kg5 53. Bxf5 Kxf5 {[%emt 0:00:01]} 54. Rd2 {[%emt 0:00:04]} Ra4 {[%emt 0:00:02]} 55. R7d3 {[%emt 0:00:01]} Kg6 {[%emt 0:00:01]} 56. Rb3 {[%emt 0:00:02]} f5 {[%emt 0:00:01]} 57. Re2 {[%emt 0:00:02]} Ra5 {[%emt 0:00:01]} 58. Rc2 {[%emt 0:00:02]} Kg5 {[%emt 0:00:01]} 59. Ke2 {[%emt 0:00:01]} Bd4 {[%emt 0:00:01]} 60. Kd3 {[%emt 0:00:01]} Ba7 {[%emt 0:00:02]} 61. a3 {[%emt 0:00:02]} Kg4 {[%emt 0:00:01]} 62. Ke2 {[%emt 0:00:02]} Re5+ {[%emt 0:00:01]} 63. Kf1 {[%emt 0:00:00]} Kh5 {[%emt 0:00:05]} 64. a4 {[%emt 0:00:02]} Re4 {[%emt 0:00:07]} 65. Ra2 {[%emt 0:00:03]} Rc4 {[%emt 0:00:02]} 66. a5 {[%emt 0:00:01]} f4 {[%emt 0:00:01]} 67. gxf4 {[%emt 0:00:02]} Rxf4 {[%emt 0:00:01]} 68. Rb7 {[%emt 0:00:01]} Bd4 {[%emt 0:00:06]} 69. a6 {[%emt 0:00:01]} Rf8 {[%emt 0:00:01]} 70. a7 {[%emt 0:00:02]} Ra8 {[%emt 0:00:01]} 71. Ra6 {[%emt 0:00:03]} Kg5 {[%emt 0:00:02]} 72. Ke2 {[%emt 0:00:02]} Kf5 {[%emt 0:00:00]} 73. f3 {[%emt 0:00:02]} Ke5 {[%emt 0:00:01]} 74. Rb5+ {[%emt 0:00:01]} Kf4 {[%emt 0:00:01]} 75. Ra4 {[%emt 0:00:01]} Re8+ {[%emt 0:00:02]} 76. Kd3 {[%emt 0:00:02]} Re3+ {[%emt 0:00:04]} 77. Kxd4 {[%emt 0:00:02]} Re4+ {[%emt 0:00:00]} 78. fxe4 {[%emt 0:00:02]} 1-0

[Event "American Cup Blitz 2024"]
[Site "Saint Louis"]
[Date "2024.03.21"]
[Round "5.9"]
[White "Swiercz, Dariusz"]
[Black "Naroditsky, Daniel"]
[Result "0-1"]
[ECO "C48"]
[WhiteElo "2612"]
[BlackElo "2619"]
[Annotator "TA"]
[PlyCount "100"]
[EventDate "2024.03.21"]
[EventType "swiss"]
[EventCountry "USA"]
[SourceTitle "playchess.com"]
[Source "ChessBase"]
[SourceQuality "1"]
[TimeControl "180+2"]

{[%evp 15,100,12,14,0,12,14,20,6,19,0,0,0,11,0,0,6,1,12,28,25,39,9,9,0,0,0,37,0,5,16,9,-29,0,-38,-7,-6,0,0,0,-10,0,-31,-8,-4,0,-10,0,-9,0,-22,-29,-17,-16,-29,18,20,20,9,13,18,18,18,18,13,20,0,0,0,0,0,0,0,0,0,0,0,23,0,0,0,0,-52,-61,-29972,-29973,-29972,-29973]} 1. e4 {[%emt 0:00:01]} Nf6 {[%emt 0:00:08]} 2. Nc3 {[%emt 0:00:12]} e5 {[%emt 0:00:02]} 3. Nf3 {[%emt 0:00:01]} Nc6 {[%emt 0:00:02]} 4. Bb5 {[%emt 0:00:01]} Nd4 {[%emt 0:00:03]} 5. O-O {[%emt 0:00:02]} Nxb5 {[%emt 0:00:02]} 6. Nxb5 {[%emt 0:00:01]} c6 {[%emt 0:00:01]} 7. Nc3 {[%emt 0:00:01]} d6 {[%emt 0:00:01]} 8. d4 {[%emt 0:00:01]} Qc7 {[%emt 0:00:00]} 9. h3 {[%emt 0:00:07]} h6 {[%emt 0:00:04]} 10. a4 {[%emt 0:00:07]} a5 {[%emt 0:00:04]} 11. Be3 {[%emt 0:00:05][%cal Bc1e3,Be3d4,Bd4e5][%mdl 32] The position is equal.} Be7 {[%emt 0:00:02]} 12. Qd3 {[%emt 0:00:10]} O-O {[%emt 0:00:17]} 13. Rfd1 {[%emt 0:00:16]} Re8 {[%emt 0:00:06]} 14. Nd2 {[%emt 0:00:13][%cal Bf3d2,Bd2c4,Bc4e3][%mdl 32]} exd4 {[%emt 0:00:42]} 15. Bxd4 {[%emt 0:00:08]} Be6 {[%emt 0:00:12]} 16. Nc4 {[%emt 0:00:29]} d5 {[%emt 0:00:19]} 17. exd5 {[%emt 0:00:23]} Nxd5 {[%emt 0:00:02]} 18. Nxd5 {[%emt 0:00:02]} (18. Be5 $5 Qd8 $8 19. Qf3 $14) 18... Bxd5 {[%emt 0:00:04]} 19. Be5 {[%emt 0:00:15]} Qd8 {[%emt 0:00:11]} 20. Qg3 {[%emt 0:00:08]} Bf8 {[%emt 0:00:04]} 21. Ne3 {[%emt 0:00:20]} (21. Bc3 $5) 21... Qg5 {[%emt 0:00:06]} 22. Qxg5 {[%emt 0:00:32]} hxg5 {[%emt 0:00:02]} 23. Bd4 {[%emt 0:00:08]} Be4 {[%emt 0:00:07]} 24. Bc3 {[%emt 0:00:04]} Bc5 {[%emt 0:00:21]} 25. Bd4 {[%emt 0:00:01]} Bb4 {[%emt 0:00:04]} 26. c3 {[%emt 0:00:01]} Bf8 {[%emt 0:00:02] [#] ...c5 is the strong threat.} 27. c4 {[%emt 0:00:02]} Bg6 {[%emt 0:00:10]} 28. Bc3 {[%emt 0:00:01]} Bc5 {[%emt 0:00:03]} 29. Bd4 {[%emt 0:00:01]} Bb4 {[%emt 0:00:00]} 30. Bc3 {[%emt 0:00:01]} Bc5 {[%emt 0:00:06]} 31. Bd4 {[%emt 0:00:01]} Bf8 {[%emt 0:00:01]} 32. Bc3 {[%emt 0:00:01]} b6 {[%emt 0:00:05]} 33. Rd7 {[%emt 0:00:03]} Rab8 {[%emt 0:00:17]} 34. Rad1 {[%emt 0:00:04]} b5 {[%emt 0:00:02]} (34... f6 $142) 35. axb5 cxb5 {[%emt 0:00:01]} 36. cxb5 {[%emt 0:00:02]} Rxb5 {[%emt 0:00:00]} 37. R7d5 {[%emt 0:00:03]} Rxd5 {[%emt 0:00:11]} 38. Rxd5 a4 39. Rxg5 {[%emt 0:00:04]} Rc8 {[%emt 0:00:03]} 40. Bd4 {[%emt 0:00:03]} Rc1+ {[%emt 0:00:04]} 41. Kh2 {[%emt 0:00:01]} Bd6+ {[%emt 0:00:03]} 42. g3 {[%emt 0:00:02]} Be4 {[%emt 0:00:04][%csl Ge4][%cal Rc1h1]} 43. Ng2 $1 {[%emt 0:00:06]} (43. Rxg7+ Kf8 44. Ng2 Rc4 $17) 43... g6 {[%emt 0:00:07]} 44. Ra5 {[%emt 0:00:03]} Rc4 {[%emt 0:00:02]} 45. Be3 {[%emt 0:00:01]} Kg7 {[%emt 0:00:01]} 46. Ra6 {[%emt 0:00:02]} Be5 {[%emt 0:00:01]} 47. Rb6 {[%emt 0:00:01]} Rc2 {[%emt 0:00:02]} 48. Rb4 {[%emt 0:00:03]} ({White should try} 48. Ra6 $11) 48... Bc6 $1 $15 {[%emt 0:00:01] This pair of bishops is nice.} (48... Rxb2 $2 {loses.} 49. Rxe4 Bf6 50. Rxa4 $18) 49. Bd4 {[%emt 0:00:02][%mdl 8192] [#]} ({Much worse is} 49. Ne1 Rxb2 50. Rc4 Bb5 $17) (49. Rb6 $15) 49... Bxd4 {[%emt 0:00:01]} 50. Rxd4 {[%emt 0:00:01]} Rxf2 {[%emt 0:00:01] Weighted Error Value: White=0.21 (precise) /Black=0.07 (flawless) .  Loses game:     	White=1     	---        Mistake:       	White=1     	Black=1      Inaccurate:     	White=5     	Black=3      OK:         	White=15    	Black=14     Best:        	White=2     	Black=2      Strong:       	White=1     	Black=1} 0-1

[Event "American Cup Blitz 2024"]
[Site "Saint Louis"]
[Date "2024.03.21"]
[Round "5.10"]
[White "Caglar, Sila"]
[Black "Rosen, Eric"]
[Result "0-1"]
[ECO "C42"]
[WhiteElo "2120"]
[BlackElo "2361"]
[Annotator "TA"]
[PlyCount "76"]
[EventDate "2024.03.21"]
[EventType "swiss"]
[EventCountry "USA"]
[SourceTitle "playchess.com"]
[Source "ChessBase"]
[SourceQuality "1"]
[TimeControl "180+2"]

{[%evp 9,76,108,115,114,201,189,206,213,277,279,278,282,259,147,331,299,392,187,190,174,139,127,126,49,110,109,96,43,62,20,0,29,79,-41,-50,-51,32,14,47,21,75,76,397,-491,-496,-706,-691,-695,-707,-692,-703,-818,-800,-735,-650,-804,-776,-865,-863,-860,-820,-1502,-838,-764,-647,-5306,-5306,-29998,-29999]} 1. e4 {[%emt 0:00:02]} e5 {[%emt 0:00:00]} 2. Nf3 {[%emt 0:00:01]} Nf6 {[%emt 0:00:03][%cal Bg8f6,Bf6g4,Bg4e3][%mdl 32]} 3. Nxe5 {[%emt 0:00:04]} Nc6 {[%emt 0:00:00]} 4. Nxc6 dxc6 {[%emt 0:00:01]} 5. d3 {[%emt 0:00:10][%cal Bd2d3,Bd3d4][%mdl 32]} Bc5 {[%emt 0:00:01]} 6. Be2 {[%emt 0:00:04] Verhindert Ng4.} h5 {[%emt 0:00:01]} (6... Ng4 $16 {war angesagt.} 7. Bxg4 Qh4) 7. c3 $18 {[%emt 0:00:02]} Ng4 {[%emt 0:00:01]} 8. d4 {[%emt 0:00:31] Weiß steht deutlich besser.} Qh4 {[%emt 0:00:01]} 9. g3 $1 {[%emt 0:00:25]} (9. dxc5 Qxf2+ 10. Kd2 Qxg2 $17) 9... Qf6 {[%emt 0:00:02]} 10. f3 {[%emt 0:00:14]} (10. dxc5 $2 Qxf2+ (10... Nxf2 $2 11. Rf1 $18) 11. Kd2 Bf5 $19) 10... h4 {[%emt 0:00:01][%cal Oh4g3]} 11. Bf4 {[%emt 0:00:18]} (11. dxc5 hxg3 12. Qd4 (12. fxg4 $2 Qf2+ 13. Kd2 Bxg4 $19) 12... Qh4 $17) ({Besser ist} 11. Rg1 $18) 11... g5 $2 {[%emt 0:01:14]} (11... hxg3 $16 {ist eine bessere Verteidigung.} 12. Bxg3 Bd6 (12... Ne3 $2 13. Qd2 $18)) 12. Bxc7 {[%emt 0:00:12]} (12. fxg4 gxf4 13. gxf4 (13. dxc5 hxg3 14. Bf3 Rxh2 $11) 13... Be7 $18) 12... Ne3 {[%emt 0:00:31]} 13. Qd3 {[%emt 0:00:13]} (13. Qd2 $142 Ng2+ 14. Kf2 hxg3+ 15. Kxg2) 13... Ng2+ {[%emt 0:00:20]} 14. Kf2 {[%emt 0:00:07]} hxg3+ {[%emt 0:00:10]} 15. Bxg3 {[%emt 0:00:06]} (15. Kxg2 Bd6 16. Bxd6 Qxd6 $18) 15... Nf4 {[%emt 0:00:04]} 16. Bxf4 {[%emt 0:00:20]} (16. Qe3 $16 Nh3+ 17. Kf1) 16... gxf4 {[%emt 0:00:01] [#]} (16... Qxf4 $14 17. Nd2 (17. dxc5 Rxh2+ 18. Rxh2 Qxh2+ 19. Ke1 Be6 $15) 17... Bb6) 17. Ke1 $1 $16 {[%emt 0:00:14]} (17. dxc5 $2 Qh4+ 18. Kg1 Rg8+ 19. Kf1 Bh3#) 17... Be6 {[%emt 0:00:10]} 18. b4 {[%emt 0:00:14]} (18. dxc5 $2 Rd8 19. Kd1 (19. Qc2 $2 Qh4+ 20. Kf1 Bh3+ 21. Kg1 Rg8#) 19... Rxd3+ 20. Bxd3 Qe5 $19) ({Günstiger ist} 18. Kd1 $16) 18... Bb6 {[%emt 0:00:04]} 19. Na3 {[%emt 0:00:08]} O-O-O {[%emt 0:00:04][%cal Rb6d4]} 20. Rd1 {[%emt 0:00:02]} Rh3 {[%emt 0:00:08]} (20... Bxa2 $11 21. Nc4 Bb3) 21. Bf1 {[%emt 0:00:09]} (21. Rd2 $16) 21... Qh4+ $15 {[%emt 0:00:04]} 22. Kd2 {[%emt 0:00:06]} Rxh2+ {[%emt 0:00:15]} (22... Qf2+ $15 23. Qe2 Rxf3 (23... Qxf3 24. Bxh3 Qxh3 25. Kc2 $14) (23... Bxd4 $2 24. cxd4 Rxd4+ 25. Kc1 $16) 24. Qxf2 Rxf2+ 25. Kc1 Rxa2) 23. Rxh2 $14 {[%emt 0:00:02]} Qxh2+ {[%emt 0:00:01]} 24. Qe2 {[%emt 0:00:02]} Qg1 {[%emt 0:00:21]} (24... Qg3 $11 {hält das Gleichgewicht.}) 25. Kc2 $16 {[%emt 0:00:03]} Rh8 $2 {[%emt 0:00:01][%mdl 8192] [#] Es drohte Bh3} (25... Qg3 $16 {ist zäher.}) 26. Nb1 $4 {[%emt 0:00:01][%mdl 8192]} (26. Bg2 $1 $18 Qe3 27. Qf1 (27. Qxe3 fxe3 28. Kd3 Rh2 $16) 27... Bxd4 (27... Bxa2 $2 {verliert.} 28. Rd3 $18) 28. Rxd4) 26... Rh2 $1 $19 {[%emt 0:00:02]} (26... Bxa2 $2 {geht unter.} 27. Bh3+ Rxh3 28. Rxg1 $18) 27. Nd2 {[%emt 0:00:02]} (27. Bg2 $142 Rxg2 (27... Qxg2 $2 28. Qxg2 Rxg2+ 29. Nd2 $19) 28. Rxg1 Rxe2+ 29. Nd2 Bxa2 30. Rh1) 27... Rxe2 {[%emt 0:00:02]} 28. Bxe2 {[%emt 0:00:00]} Qh2 {[%emt 0:00:01]} 29. Bd3 {[%emt 0:00:02]} Bd8 {[%emt 0:00:05]} 30. c4 {[%emt 0:00:02]} Be7 {[%emt 0:00:04]} 31. a3 {[%emt 0:00:01]} f6 {[%emt 0:00:04]} 32. d5 {[%emt 0:00:02]} Bd7 {[%emt 0:00:01] Und ...cxd5 würde nun gewinnen.} 33. c5 {[%emt 0:00:01]} cxd5 {[%emt 0:00:01]} 34. exd5 {[%emt 0:00:01]} Ba4+ {[%emt 0:00:01]} 35. Kc3 {[%emt 0:00:02]} Qh5 {[%emt 0:00:03]} 36. Re1 {[%emt 0:00:02] Gegen Qe5+ gerichtet.} Bf8 {[%emt 0:00:02][%cal Of6f5] ...f5! wäre nun fies.} 37. Ne4 {[%emt 0:00:02]} Qe5+ {[%emt 0:00:03]} 38. Kd2 {[%emt 0:00:03]} Qb2+ {[%emt 0:00:02] Gewichteter Fehlerwert: Weiß=0.71/Schwarz=0.49.  Verlustzug:     	---       	Schwarz=2     Gewinn verpasst:   	Weiß=1     	---        Fehler:       	Weiß=6     	Schwarz=5     Ungenau:       	Weiß=2     	Schwarz=3     OK:         	Weiß=4     	Schwarz=5     Bester:       	Weiß=2     	Schwarz=3     Stark:        	Weiß=2     	Schwarz=1} 0-1

[Event "American Cup Blitz 2024"]
[Site "Saint Louis"]
[Date "2024.03.21"]
[Round "6.1"]
[White "Durarbayli, Vasif"]
[Black "Oparin, Grigoriy"]
[Result "0-1"]
[ECO "B67"]
[WhiteElo "2627"]
[BlackElo "2671"]
[Annotator "TA"]
[PlyCount "88"]
[EventDate "2024.03.21"]
[EventType "swiss"]
[EventCountry "USA"]
[SourceTitle "playchess.com"]
[Source "ChessBase"]
[SourceQuality "1"]
[TimeControl "180+2"]

{[%evp 16,88,46,27,37,32,29,32,41,0,0,6,8,-16,-20,-14,-11,-23,-20,-16,15,15,30,35,9,-41,78,59,81,35,28,-28,83,0,45,46,43,0,0,0,0,0,0,-57,-8,-75,-35,-41,-33,-213,-33,-357,-366,-1406,-172,-188,0,-1982,-670,-2068,-1947,-2164,-1755,-29974,-29974,-29980,-29980,-29983,-29984,-29987,-29988,-29989,-29990,-29996,-29987]} 1. e4 {[%emt 0:00:00]} c5 {[%emt 0:00:01]} 2. Nf3 {[%emt 0:00:01]} d6 {[%emt 0:00:01]} 3. d4 {[%emt 0:00:01]} cxd4 {[%emt 0:00:01]} 4. Nxd4 {[%emt 0:00:01]} Nf6 {[%emt 0:00:02]} 5. Nc3 {[%emt 0:00:01]} Nc6 {[%emt 0:00:01]} 6. Bg5 {[%emt 0:00:04]} e6 {[%emt 0:00:01]} 7. Qd2 {[%emt 0:00:01]} a6 {[%emt 0:00:01]} 8. O-O-O {[%emt 0:00:02]} Bd7 {[%emt 0:00:01]} 9. Kb1 {[%emt 0:00:03]} Nxd4 {[%emt 0:00:04] The modern move. B67: Sicilian: Richter-Rauzer: 7...a6 8 0-0-0 Bd7, lines without 9 f4 Be7.} 10. Qxd4 {[%emt 0:00:02]} Be7 {[%emt 0:00:01]} 11. f4 {[%emt 0:00:15]} Bc6 {[%emt 0:00:31]} 12. Be2 {[%emt 0:00:26]} (12. f5 {is more complex.} Qa5 13. Bc4 O-O 14. Bd2) 12... h6 {[%emt 0:00:08]} 13. Bh4 {[%emt 0:00:08]} O-O {[%emt 0:00:04][%cal Of6e4]} 14. Bf3 {[%emt 0:00:16]} Nxe4 {[%emt 0:00:14]} 15. Bxe4 {[%emt 0:00:10] Strongly threatening Bxe7.} Bxh4 {[%emt 0:00:01]} 16. Bxc6 {[%emt 0:00:01]} bxc6 {[%emt 0:00:02]} 17. Qxd6 {[%emt 0:00:02]} Qa5 {[%emt 0:00:12]} 18. g3 $146 {[%emt 0:00:22]} ({Predecessor:} 18. Ne4 Rab8 19. g3 Qb5 20. b3 Rfd8 21. Qc5 Rxd1+ {½-½ Niehaus,F (2132)-Matthes,A (2209) Berlin Werner Ott op 2023 (7)}) 18... Rfd8 {[%emt 0:01:34]} 19. Qxc6 {[%emt 0:00:28]} Bf6 {[%emt 0:00:05] aiming for ...Rdc8.} 20. Ne4 {[%emt 0:00:40]} (20. Rxd8+ $11 Rxd8 21. a3) 20... Be7 {[%emt 0:00:01]} (20... Bxb2 $1 $15 {keeps the upper hand.} 21. Kxb2 (21. Rxd8+ Rxd8 22. Kxb2 Qb4+ 23. Ka1 Rb8 $15) 21... Qb4+ 22. Ka1 Rxd1+ 23. Rxd1 Rb8) 21. Rxd8+ $16 {[%emt 0:00:15]} Rxd8 {[%emt 0:00:01]} 22. Nc3 {[%emt 0:00:12]} (22. Qb7 $16 Bf8 23. h4) 22... Bf6 $14 {[%emt 0:00:07]} 23. Ne4 {[%emt 0:00:03]} (23. a3 $142) 23... Be7 {[%emt 0:00:02]} (23... Bxb2 $11 {keeps the balance.} 24. Kxb2 Qb4+ 25. Ka1 Rb8) 24. Nc3 {[%emt 0:00:01]} (24. Qb7 $16 Bf8 25. h4) 24... Rb8 {[%emt 0:00:14]} 25. b3 {[%emt 0:00:08]} Rd8 {[%emt 0:00:06]} 26. Rd1 {[%emt 0:00:05]} Rxd1+ $1 27. Nxd1 {[%emt 0:00:01]} Qd2 {[%emt 0:00:05][%csl LRd1,LRh2] ( -> ...Ba3)} 28. Qa8+ {[%emt 0:00:03]} Bf8 {[%emt 0:00:01]} 29. Qf3 {[%emt 0:00:01]} (29. Qh1 $11) 29... Qxh2 {[%emt 0:00:04]} (29... Ba3 $15 30. Nb2 Qxh2 31. Qa8+ Bf8) 30. Kb2 {[%emt 0:00:01]} (30. Nc3 $11) 30... g5 {[%emt 0:00:03]} 31. fxg5 {[%emt 0:00:04]} hxg5 {[%emt 0:00:01]} 32. Ne3 $2 {[%emt 0:00:01] [#]} (32. Nf2 $15) 32... Bg7+ $2 {[%emt 0:00:04]} (32... Qd2 $1 $19 33. g4 Bg7+ 34. Kb1 Bd4) 33. Ka3 $2 {[%emt 0:00:01][%mdl 8192]} ({Only move:} 33. Kc1 $1 $15) 33... Qd2 $19 {[%emt 0:00:01][%cal Rd2a5]} 34. Qa8+ $2 {[%emt 0:00:05]} (34. Nc4 Qxc2 35. Kb4 Qxa2 36. Nd6 Qd2+ 37. Kc5 Qd4+ 38. Kc6) 34... Kh7 $2 {[%emt 0:00:01]} (34... Bf8+ 35. Kb2 Qxe3) 35. Qh1+ $19 {[%emt 0:00:03] [#]} ({But not} 35. Qe4+ $2 f5 36. Qh1+ Kg8 $19) 35... Kg8 $2 {[%emt 0:00:04]} ({Black should play} 35... Bh6 $1 $19 36. Qe4+ f5 37. Qb7+ (37. Qxe6 {leads to mate.} Bf8+) 37... Kg8) 36. Qe4 $2 {[%emt 0:00:03][%mdl 8192]} (36. Qa8+ $11 Bf8+ 37. Kb2 Qxe3 38. g4) 36... Qa5+ $19 {[%emt 0:00:06]} 37. Qa4 {[%emt 0:00:00]} Qc5+ {[%emt 0:00:00]} 38. Qb4 {[%emt 0:00:02]} Qxe3 {[%emt 0:00:01]} 39. Qb8+ {[%emt 0:00:02]} Bf8+ {[%emt 0:00:02]} 40. Kb2 {[%emt 0:00:01]} Qd4+ {[%emt 0:00:02]} 41. Kb1 {[%emt 0:00:01]} e5 {[%emt 0:00:02]} 42. Qa8 {[%emt 0:00:06]} e4 {[%emt 0:00:03]} 43. Qxa6 {[%emt 0:00:01]} e3 {[%emt 0:00:02]} 44. Qe2 {[%emt 0:00:01]} Bg7 {[%emt 0:00:01]} 0-1